[Event "Titled Tuesday Blitz July 25 Early 2023"]
[White "Marn, Jan"]
[Black "Koellner, Ruben Gideon"]
[WhiteFideId "14619245"]
[BlackFideId "12993093"]
[WhiteElo "2442"]
[BlackElo "2716"]
[Result "1/2-1/2"]
[Round "9"]
[TimeControl "180+2"]
[Date "2023.07.25"]
[WhiteClock "0:00:15"]
[BlackClock "0:00:20"]
[Board "55"]

1. f4 {[%clk 0:03:00]}  d5 {[%clk 0:02:03]} 2. Nf3 {[%clk 0:02:58]}  Bg4 {[%clk 0:02:01]} 3. Ne5 {[%clk 0:02:58]}  h5 {[%clk 0:01:56]} 4. b3 {[%clk 0:02:32]}  e6 {[%clk 0:01:53]} 5. Bb2 {[%clk 0:02:30]}  Nd7 {[%clk 0:01:52]} 6. Nxg4 {[%clk 0:02:23]}  hxg4 {[%clk 0:01:52]} 7. g3 {[%clk 0:02:24]}  Ngf6 {[%clk 0:01:50]} 8. Bg2 {[%clk 0:02:24]}  Ne4 {[%clk 0:01:48]} 9. d3 {[%clk 0:02:17]}  Nd6 {[%clk 0:01:48]} 10. Nd2 {[%clk 0:02:17]}  Nf5 {[%clk 0:01:47]} 11. Nf1 {[%clk 0:02:09]}  Bb4+ {[%clk 0:01:43]} 12. c3 {[%clk 0:02:09]}  Qf6 {[%clk 0:01:43]} 13. Qd2 {[%clk 0:02:06]}  Bc5 {[%clk 0:01:37]} 14. e4 {[%clk 0:02:05]}  Ne7 {[%clk 0:01:32]} 15. O-O-O {[%clk 0:01:58]}  a5 {[%clk 0:01:32]} 16. Ne3 {[%clk 0:01:51]}  Bxe3 {[%clk 0:01:27]} 17. Qxe3 {[%clk 0:01:51]}  c6 {[%clk 0:01:26]} 18. c4 {[%clk 0:01:48]}  Qg6 {[%clk 0:01:20]} 19. exd5 {[%clk 0:01:46]}  cxd5 {[%clk 0:01:19]} 20. cxd5 {[%clk 0:01:46]}  Ra6 {[%clk 0:01:11]} 21. dxe6 {[%clk 0:01:30]}  Rxe6 {[%clk 0:01:12]} 22. Qd4 {[%clk 0:01:26]}  Nf5 {[%clk 0:01:05]} 23. Qf2 {[%clk 0:01:16]}  O-O {[%clk 0:01:04]} 24. Rhe1 {[%clk 0:01:16]}  Rxe1 {[%clk 0:01:02]} 25. Rxe1 {[%clk 0:01:15]}  Rc8+ {[%clk 0:00:59]} 26. Kb1 {[%clk 0:01:16]}  Nc5 {[%clk 0:00:59]} 27. Be4 {[%clk 0:01:11]}  Nxe4 {[%clk 0:00:48]} 28. dxe4 {[%clk 0:01:12]}  Nd6 {[%clk 0:00:48]} 29. Qd4 {[%clk 0:01:12]}  Re8 {[%clk 0:00:45]} 30. f5 {[%clk 0:00:49]}  Nxf5 {[%clk 0:00:44]} 31. Qd7 {[%clk 0:00:48]}  Nd6 {[%clk 0:00:44]} 32. Ka1 {[%clk 0:00:46]}  Rxe4 {[%clk 0:00:42]} 33. Rxe4 {[%clk 0:00:46]}  Qxe4 {[%clk 0:00:29]} 34. a3 {[%clk 0:00:47]}  Qe6 {[%clk 0:00:23]} 35. Qd8+ {[%clk 0:00:46]}  Kh7 {[%clk 0:00:23]} 36. Qxa5 {[%clk 0:00:44]}  Kg6 {[%clk 0:00:16]} 37. Qc3 {[%clk 0:00:42]}  f6 {[%clk 0:00:16]} 38. Qc2+ {[%clk 0:00:42]}  Qe4 {[%clk 0:00:15]} 39. Qxe4+ {[%clk 0:00:39]}  Nxe4 {[%clk 0:00:16]} 40. Bd4 {[%clk 0:00:37]}  Kf5 {[%clk 0:00:16]} 41. Kb2 {[%clk 0:00:37]}  Ke6 {[%clk 0:00:17]} 42. Kc2 {[%clk 0:00:33]}  Kd5 {[%clk 0:00:17]} 43. Kd3 {[%clk 0:00:33]}  Ng5 {[%clk 0:00:16]} 44. Be3 {[%clk 0:00:24]}  Nf3 {[%clk 0:00:17]} 45. a4 {[%clk 0:00:24]}  Nxh2 {[%clk 0:00:16]} 46. b4 {[%clk 0:00:25]}  Nf3 {[%clk 0:00:15]} 47. b5 {[%clk 0:00:22]}  Ne5+ {[%clk 0:00:15]} 48. Ke2 {[%clk 0:00:21]}  Kc4 {[%clk 0:00:15]} 49. Bd2 {[%clk 0:00:17]}  Nd7 {[%clk 0:00:13]} 50. Ke3 {[%clk 0:00:17]}  Nc5 {[%clk 0:00:13]} 51. Kf4 {[%clk 0:00:17]}  Nxa4 {[%clk 0:00:13]} 52. Kxg4 {[%clk 0:00:17]}  Kxb5 {[%clk 0:00:11]} 53. Kf5 {[%clk 0:00:18]}  Nc5 {[%clk 0:00:10]} 54. Kg6 {[%clk 0:00:18]}  Ne4 {[%clk 0:00:09]} 55. Be1 {[%clk 0:00:18]}  Kc4 {[%clk 0:00:08]} 56. Kxg7 {[%clk 0:00:17]}  Kd3 {[%clk 0:00:09]} 57. Kg6 {[%clk 0:00:16]}  Ke2 {[%clk 0:00:09]} 58. Ba5 {[%clk 0:00:15]}  Kf3 {[%clk 0:00:09]} 59. Kf5 {[%clk 0:00:14]}  b5 {[%clk 0:00:09]} 60. g4 {[%clk 0:00:13]}  Ke3 {[%clk 0:00:08]} 61. Bb6+ {[%clk 0:00:11]}  Kd3 {[%clk 0:00:09]} 62. Ba5 {[%clk 0:00:11]}  Kd4 {[%clk 0:00:09]} 63. Bb6+ {[%clk 0:00:11]}  Kd5 {[%clk 0:00:10]} 64. Ba5 {[%clk 0:00:11]}  Nf2 {[%clk 0:00:09]} 65. Kxf6 {[%clk 0:00:06]}  Nxg4+ {[%clk 0:00:09]} 66. Kf5 {[%clk 0:00:06]}  Ne5 {[%clk 0:00:08]} 67. Kf4 {[%clk 0:00:06]}  Nc4 {[%clk 0:00:04]} 68. Bb4 {[%clk 0:00:06]}  Kd4 {[%clk 0:00:04]} 69. Kf3 {[%clk 0:00:04]}  Kd3 {[%clk 0:00:04]} 70. Kf2 {[%clk 0:00:04]}  Kc2 {[%clk 0:00:01]} 71. Ke2 {[%clk 0:00:05]}  Nb2 {[%clk 0:00:02]} 72. Bf8 {[%clk 0:00:05]}  Nd3 {[%clk 0:00:02]} 73. Be7 {[%clk 0:00:05]}  Kc3 {[%clk 0:00:03]} 74. Bf8 {[%clk 0:00:05]}  Kc4 {[%clk 0:00:03]} 75. Kd2 {[%clk 0:00:05]}  Nc5 {[%clk 0:00:04]} 76. Bxc5 {[%clk 0:00:05]}  Kxc5 {[%clk 0:00:05]} 77. Kc3 {[%clk 0:00:06]}  Kb6 {[%clk 0:00:05]} 78. Kb4 {[%clk 0:00:07]}  Kc6 {[%clk 0:00:06]} 79. Kb3 {[%clk 0:00:06]}  Kb6 {[%clk 0:00:07]} 80. Kb4 {[%clk 0:00:07]}  Ka6 {[%clk 0:00:07]} 81. Kb3 {[%clk 0:00:08]}  Ka5 {[%clk 0:00:08]} 82. Ka3 {[%clk 0:00:08]}  b4+ {[%clk 0:00:09]} 83. Kb3 {[%clk 0:00:09]}  Kb5 {[%clk 0:00:10]} 84. Kb2 {[%clk 0:00:10]}  Kc4 {[%clk 0:00:11]} 85. Kc2 {[%clk 0:00:10]}  b3+ {[%clk 0:00:12]} 86. Kb2 {[%clk 0:00:11]}  Kb4 {[%clk 0:00:13]} 87. Kb1 {[%clk 0:00:11]}  Kc3 {[%clk 0:00:14]} 88. Kc1 {[%clk 0:00:12]}  Kc4 {[%clk 0:00:14]} 89. Kb2 {[%clk 0:00:12]}  Kb4 {[%clk 0:00:15]} 90. Kb1 {[%clk 0:00:12]}  Kb5 {[%clk 0:00:16]} 91. Kb2 {[%clk 0:00:13]}  Ka4 {[%clk 0:00:16]} 92. Kb1 {[%clk 0:00:13]}  Ka3 {[%clk 0:00:17]} 93. Ka1 {[%clk 0:00:14]}  Kb4 {[%clk 0:00:17]} 94. Kb2 {[%clk 0:00:14]}  Kc4 {[%clk 0:00:17]} 95. Kb1 {[%clk 0:00:15]}  Kc3 {[%clk 0:00:18]} 96. Kc1 {[%clk 0:00:15]}  b2+ {[%clk 0:00:19]} 97. Kb1 {[%clk 0:00:15]}  Kb3 {[%clk 0:00:20]} 1/2-1/2


[Site "https://www.chess.com"]

[Event "Titled Tuesday Blitz July 25 Early 2023"]
[White "Marek, Matyas"]
[Black "Harriott, Tyrell"]
[WhiteFideId "335398"]
[BlackFideId "2086484"]
[WhiteElo "2709"]
[BlackElo "2410"]
[Result "1-0"]
[Round "9"]
[TimeControl "180+2"]
[Date "2023.07.25"]
[WhiteClock "0:00:34"]
[BlackClock "0:00:25"]
[Board "57"]

1. Nf3 {[%clk 0:03:00]}  d5 {[%clk 0:02:59]} 2. g3 {[%clk 0:03:01]}  e6 {[%clk 0:03:00]} 3. Bg2 {[%clk 0:03:02]}  Bd6 {[%clk 0:03:00]} 4. O-O {[%clk 0:03:03]}  f5 {[%clk 0:03:01]} 5. d3 {[%clk 0:03:04]}  Nf6 {[%clk 0:03:00]} 6. c4 {[%clk 0:03:03]}  O-O {[%clk 0:03:00]} 7. Nc3 {[%clk 0:03:03]}  c6 {[%clk 0:02:59]} 8. e4 {[%clk 0:03:04]}  Be7 {[%clk 0:02:59]} 9. cxd5 {[%clk 0:02:54]}  exd5 {[%clk 0:02:57]} 10. e5 {[%clk 0:02:39]}  Ne8 {[%clk 0:02:52]} 11. h4 {[%clk 0:02:39]}  Nc7 {[%clk 0:02:51]} 12. Bg5 {[%clk 0:02:37]}  Ne6 {[%clk 0:02:50]} 13. Bxe7 {[%clk 0:02:37]}  Qxe7 {[%clk 0:02:51]} 14. Ne2 {[%clk 0:02:33]}  Na6 {[%clk 0:02:48]} 15. Qd2 {[%clk 0:02:29]}  Bd7 {[%clk 0:02:46]} 16. Nf4 {[%clk 0:02:26]}  Nac7 {[%clk 0:02:46]} 17. Rfe1 {[%clk 0:02:17]}  Be8 {[%clk 0:02:45]} 18. Nxe6 {[%clk 0:02:13]}  Nxe6 {[%clk 0:02:43]} 19. d4 {[%clk 0:02:13]}  Bh5 {[%clk 0:02:43]} 20. Ng5 {[%clk 0:02:14]}  Nxg5 {[%clk 0:02:41]} 21. Qxg5 {[%clk 0:02:13]}  Qxg5 {[%clk 0:02:40]} 22. hxg5 {[%clk 0:02:14]}  Rfe8 {[%clk 0:02:38]} 23. f4 {[%clk 0:02:06]}  Re7 {[%clk 0:02:37]} 24. Kf2 {[%clk 0:02:07]}  Rae8 {[%clk 0:02:36]} 25. Rec1 {[%clk 0:02:07]}  Rf8 {[%clk 0:02:33]} 26. b4 {[%clk 0:02:06]}  a6 {[%clk 0:02:33]} 27. a4 {[%clk 0:02:05]}  Be8 {[%clk 0:02:10]} 28. b5 {[%clk 0:01:59]}  Bd7 {[%clk 0:02:03]} 29. bxa6 {[%clk 0:01:54]}  bxa6 {[%clk 0:02:03]} 30. Rab1 {[%clk 0:01:54]}  Be8 {[%clk 0:01:59]} 31. a5 {[%clk 0:01:52]}  Ra7 {[%clk 0:01:55]} 32. Rb6 {[%clk 0:01:52]}  Bd7 {[%clk 0:01:47]} 33. Bf1 {[%clk 0:01:40]}  Rfa8 {[%clk 0:01:46]} 34. Bd3 {[%clk 0:01:37]}  Kf8 {[%clk 0:01:44]} 35. Bc2 {[%clk 0:01:36]}  Ke7 {[%clk 0:01:42]} 36. Ba4 {[%clk 0:01:36]}  Rc7 {[%clk 0:01:24]} 37. Bd1 {[%clk 0:01:14]}  Raa7 {[%clk 0:01:17]} 38. Be2 {[%clk 0:01:14]}  Ra8 {[%clk 0:01:13]} 39. Ke3 {[%clk 0:01:03]}  Raa7 {[%clk 0:01:09]} 40. Rh1 {[%clk 0:01:01]}  c5 {[%clk 0:01:07]} 41. Rxh7 {[%clk 0:00:59]}  cxd4+ {[%clk 0:01:07]} 42. Kxd4 {[%clk 0:01:00]}  Kf8 {[%clk 0:01:05]} 43. e6 {[%clk 0:00:48]}  Be8 {[%clk 0:01:03]} 44. Rb8 {[%clk 0:00:44]}  Rc2 {[%clk 0:00:33]} 45. Rh8+ {[%clk 0:00:41]}  Ke7 {[%clk 0:00:33]} 46. Rhxe8+ {[%clk 0:00:40]}  Kd6 {[%clk 0:00:33]} 47. Rbd8+ {[%clk 0:00:40]}  Kc6 {[%clk 0:00:33]} 48. Rc8+ {[%clk 0:00:40]}  Kd6 {[%clk 0:00:33]} 49. Rxc2 {[%clk 0:00:39]}  g6 {[%clk 0:00:32]} 50. Rd8+ {[%clk 0:00:38]}  Kxe6 {[%clk 0:00:31]} 51. Rc6+ {[%clk 0:00:37]}  Ke7 {[%clk 0:00:31]} 52. Rh8 {[%clk 0:00:36]}  Kd7 {[%clk 0:00:28]} 53. Rxg6 {[%clk 0:00:33]}  Rc7 {[%clk 0:00:28]} 54. Rh7+ {[%clk 0:00:32]}  Kc8 {[%clk 0:00:27]} 55. Rxc7+ {[%clk 0:00:32]}  Kxc7 {[%clk 0:00:28]} 56. Rf6 {[%clk 0:00:32]}  Kd7 {[%clk 0:00:28]} 57. g6 {[%clk 0:00:33]}  Kc7 {[%clk 0:00:28]} 58. g7 {[%clk 0:00:33]}  Kd7 {[%clk 0:00:28]} 59. g8=Q {[%clk 0:00:33]}  Ke7 {[%clk 0:00:25]} 60. Qg7+ {[%clk 0:00:34]} 1-0


[Site "https://www.chess.com"]

[Event "Titled Tuesday Blitz July 25 Early 2023"]
[White "Luxama, Jacques Muller"]
[Black "Djokic, Mihailo"]
[WhiteFideId "11900113"]
[BlackFideId "976440"]
[WhiteElo "2232"]
[BlackElo "2699"]
[Result "0-1"]
[Round "9"]
[TimeControl "180+2"]
[Date "2023.07.25"]
[WhiteClock "0:00:32"]
[BlackClock "0:01:32"]
[Board "58"]

1. e4 {[%clk 0:03:00]}  c5 {[%clk 0:03:00]} 2. Nf3 {[%clk 0:02:59]}  d6 {[%clk 0:02:59]} 3. Bb5+ {[%clk 0:02:59]}  Bd7 {[%clk 0:03:00]} 4. Bxd7+ {[%clk 0:02:59]}  Qxd7 {[%clk 0:03:00]} 5. O-O {[%clk 0:02:59]}  Nc6 {[%clk 0:03:01]} 6. c3 {[%clk 0:02:59]}  Nf6 {[%clk 0:03:01]} 7. Re1 {[%clk 0:02:59]}  e6 {[%clk 0:03:02]} 8. d4 {[%clk 0:02:59]}  cxd4 {[%clk 0:03:03]} 9. cxd4 {[%clk 0:03:00]}  d5 {[%clk 0:03:03]} 10. e5 {[%clk 0:02:59]}  Ne4 {[%clk 0:03:03]} 11. a3 {[%clk 0:03:00]}  f6 {[%clk 0:03:03]} 12. exf6 {[%clk 0:02:57]}  gxf6 {[%clk 0:03:03]} 13. Qd3 {[%clk 0:02:43]}  Bd6 {[%clk 0:03:01]} 14. Nbd2 {[%clk 0:02:43]}  Nxd2 {[%clk 0:03:01]} 15. Bxd2 {[%clk 0:02:44]}  O-O-O {[%clk 0:03:01]} 16. b4 {[%clk 0:02:39]}  Kb8 {[%clk 0:03:01]} 17. b5 {[%clk 0:02:38]}  Ne7 {[%clk 0:03:01]} 18. Qe2 {[%clk 0:02:30]}  Rhg8 {[%clk 0:02:37]} 19. Qxe6 {[%clk 0:02:30]}  Qxb5 {[%clk 0:02:33]} 20. Rab1 {[%clk 0:02:17]}  Qd7 {[%clk 0:02:32]} 21. Qxd7 {[%clk 0:01:17]}  Rxd7 {[%clk 0:02:30]} 22. Re6 {[%clk 0:01:17]}  Bxa3 {[%clk 0:02:12]} 23. Bf4+ {[%clk 0:01:15]}  Ka8 {[%clk 0:02:11]} 24. Rxf6 {[%clk 0:01:15]}  Ng6 {[%clk 0:02:10]} 25. Bg3 {[%clk 0:01:13]}  Rf8 {[%clk 0:02:10]} 26. Rxf8+ {[%clk 0:01:05]}  Bxf8 {[%clk 0:02:11]} 27. h4 {[%clk 0:01:04]}  b6 {[%clk 0:02:06]} 28. h5 {[%clk 0:01:02]}  Ne7 {[%clk 0:02:06]} 29. Ne5 {[%clk 0:01:02]}  Rd8 {[%clk 0:02:03]} 30. Rc1 {[%clk 0:00:59]}  Nf5 {[%clk 0:01:56]} 31. Rc7 {[%clk 0:00:53]}  Nxd4 {[%clk 0:01:54]} 32. Kh2 {[%clk 0:00:46]}  h6 {[%clk 0:01:48]} 33. f4 {[%clk 0:00:35]}  Bd6 {[%clk 0:01:46]} 34. Rh7 {[%clk 0:00:34]}  Bxe5 {[%clk 0:01:40]} 35. fxe5 {[%clk 0:00:34]}  Nf5 {[%clk 0:01:41]} 36. Bf4 {[%clk 0:00:33]}  d4 {[%clk 0:01:39]} 37. e6 {[%clk 0:00:32]}  d3 {[%clk 0:01:32]} 38. Rf7 {[%clk 0:00:32]} 0-1


[Site "https://www.chess.com"]

[Event "Titled Tuesday Blitz July 25 Early 2023"]
[White "Kaplan, Avi Harrison"]
[Black "Xu, Yi"]
[WhiteFideId "30934559"]
[BlackFideId "8605564"]
[WhiteElo "2519"]
[BlackElo "2737"]
[Result "0-1"]
[Round "9"]
[TimeControl "180+2"]
[Date "2023.07.25"]
[WhiteClock "0:01:02"]
[BlackClock "0:00:42"]
[Board "64"]

1. b3 {[%clk 0:03:00]}  a6 {[%clk 0:02:59]} 2. Bb2 {[%clk 0:03:00]}  h6 {[%clk 0:02:56]} 3. h3 {[%clk 0:02:57]}  b5 {[%clk 0:02:56]} 4. a3 {[%clk 0:02:58]}  Bb7 {[%clk 0:02:56]} 5. d3 {[%clk 0:02:57]}  c5 {[%clk 0:02:54]} 6. Nd2 {[%clk 0:02:57]}  d5 {[%clk 0:02:54]} 7. g3 {[%clk 0:02:57]}  d4 {[%clk 0:02:52]} 8. Ngf3 {[%clk 0:02:55]}  e5 {[%clk 0:02:53]} 9. Bg2 {[%clk 0:02:55]}  Nf6 {[%clk 0:02:53]} 10. c4 {[%clk 0:02:55]}  Bd6 {[%clk 0:02:51]} 11. e3 {[%clk 0:02:47]}  O-O {[%clk 0:02:51]} 12. exd4 {[%clk 0:02:46]}  exd4 {[%clk 0:02:50]} 13. O-O {[%clk 0:02:44]}  Nbd7 {[%clk 0:02:50]} 14. b4 {[%clk 0:02:41]}  cxb4 {[%clk 0:02:44]} 15. Nxd4 {[%clk 0:02:40]}  Bxg2 {[%clk 0:02:43]} 16. Kxg2 {[%clk 0:02:41]}  bxa3 {[%clk 0:02:43]} 17. Bxa3 {[%clk 0:02:42]}  Bxa3 {[%clk 0:02:43]} 18. Rxa3 {[%clk 0:02:43]}  Ne5 {[%clk 0:02:40]} 19. N2f3 {[%clk 0:02:34]}  Nxf3 {[%clk 0:02:40]} 20. Nxf3 {[%clk 0:02:35]}  b4 {[%clk 0:02:40]} 21. Ra4 {[%clk 0:02:32]}  a5 {[%clk 0:02:39]} 22. d4 {[%clk 0:02:29]}  Ne4 {[%clk 0:02:31]} 23. Qb3 {[%clk 0:02:21]}  Nc3 {[%clk 0:02:31]} 24. Raa1 {[%clk 0:02:21]}  Qb8 {[%clk 0:02:19]} 25. Nd2 {[%clk 0:02:10]}  a4 {[%clk 0:02:18]} 26. Qb2 {[%clk 0:02:10]}  a3 {[%clk 0:02:05]} 27. Qb3 {[%clk 0:02:08]}  a2 {[%clk 0:02:04]} 28. Rfe1 {[%clk 0:01:59]}  Ra3 {[%clk 0:02:02]} 29. Qb2 {[%clk 0:01:55]}  Qb7+ {[%clk 0:01:38]} 30. Kg1 {[%clk 0:01:52]}  Rfa8 {[%clk 0:01:38]} 31. d5 {[%clk 0:01:45]}  Na4 {[%clk 0:01:27]} 32. Qd4 {[%clk 0:01:17]}  b3 {[%clk 0:01:22]} 33. d6 {[%clk 0:01:15]}  b2 {[%clk 0:01:08]} 34. d7 {[%clk 0:01:10]}  bxa1=Q {[%clk 0:01:06]} 35. d8=Q+ {[%clk 0:00:55]}  Rxd8 {[%clk 0:01:06]} 36. Qxd8+ {[%clk 0:00:54]}  Kh7 {[%clk 0:01:07]} 37. Rxa1 {[%clk 0:00:54]}  Qb2 {[%clk 0:01:07]} 38. Re1 {[%clk 0:00:47]}  a1=Q {[%clk 0:01:06]} 39. Rxa1 {[%clk 0:00:48]}  Rxa1+ {[%clk 0:01:04]} 40. Kg2 {[%clk 0:00:49]}  Qb7+ {[%clk 0:01:02]} 41. Qd5 {[%clk 0:00:46]}  Qxd5+ {[%clk 0:01:02]} 42. cxd5 {[%clk 0:00:47]}  Rd1 {[%clk 0:01:02]} 43. Nf3 {[%clk 0:00:48]}  Rxd5 {[%clk 0:01:01]} 44. h4 {[%clk 0:00:49]}  Nc5 {[%clk 0:01:01]} 45. Nh2 {[%clk 0:00:50]}  Ne4 {[%clk 0:01:01]} 46. Nf3 {[%clk 0:00:50]}  h5 {[%clk 0:01:00]} 47. Kh3 {[%clk 0:00:50]}  Rf5 {[%clk 0:00:58]} 48. Kg2 {[%clk 0:00:51]}  Rxf3 {[%clk 0:00:58]} 49. Kxf3 {[%clk 0:00:52]}  f5 {[%clk 0:00:58]} 50. Kf4 {[%clk 0:00:51]}  Nxf2 {[%clk 0:00:57]} 51. Kxf5 {[%clk 0:00:51]}  g6+ {[%clk 0:00:56]} 52. Kf6 {[%clk 0:00:51]}  Ne4+ {[%clk 0:00:56]} 53. Ke5 {[%clk 0:00:50]}  Nxg3 {[%clk 0:00:56]} 54. Kf4 {[%clk 0:00:51]}  Nf5 {[%clk 0:00:57]} 55. Kg5 {[%clk 0:00:52]}  Kg7 {[%clk 0:00:57]} 56. Kf4 {[%clk 0:00:51]}  Nxh4 {[%clk 0:00:58]} 57. Kg3 {[%clk 0:00:52]}  Nf5+ {[%clk 0:00:58]} 58. Kg2 {[%clk 0:00:53]}  g5 {[%clk 0:00:58]} 59. Kg1 {[%clk 0:00:54]}  g4 {[%clk 0:00:58]} 60. Kh1 {[%clk 0:00:55]}  h4 {[%clk 0:00:59]} 61. Kh2 {[%clk 0:00:56]}  Kg6 {[%clk 0:01:00]} 62. Kh1 {[%clk 0:00:56]}  Kg5 {[%clk 0:01:00]} 63. Kh2 {[%clk 0:00:57]}  Kf4 {[%clk 0:01:01]} 64. Kh1 {[%clk 0:00:58]}  Kf3 {[%clk 0:01:01]} 65. Kh2 {[%clk 0:00:59]}  Ne3 {[%clk 0:00:58]} 66. Kh1 {[%clk 0:01:00]}  g3 {[%clk 0:00:57]} 67. Kg1 {[%clk 0:00:59]}  h3 {[%clk 0:00:57]} 68. Kh1 {[%clk 0:01:00]}  g2+ {[%clk 0:00:49]} 69. Kg1 {[%clk 0:01:01]}  h2+ {[%clk 0:00:42]} 70. Kxh2 {[%clk 0:01:01]}  Kf2 {[%clk 0:00:42]} 71. Kh3 {[%clk 0:01:02]}  g1=Q {[%clk 0:00:42]} 72. Kh4 {[%clk 0:01:02]}  Qg4# {[%clk 0:00:42]} 0-1


[Site "https://www.chess.com"]

[Event "Titled Tuesday Blitz July 25 Early 2023"]
[White "NikaVolkov"]
[Black "Ginzburg, Yakov"]
[BlackFideId "4157176"]
[WhiteElo "2714"]
[BlackElo "2502"]
[Result "1/2-1/2"]
[Round "9"]
[TimeControl "180+2"]
[Date "2023.07.25"]
[WhiteClock "0:02:41"]
[BlackClock "0:00:05"]
[Board "66"]

1. d4 {[%clk 0:03:00]}  d5 {[%clk 0:02:57]} 2. Nf3 {[%clk 0:03:01]}  Nf6 {[%clk 0:02:56]} 3. e3 {[%clk 0:03:01]}  g6 {[%clk 0:02:53]} 4. c4 {[%clk 0:03:02]}  Bg7 {[%clk 0:02:50]} 5. Nc3 {[%clk 0:03:03]}  O-O {[%clk 0:02:49]} 6. Be2 {[%clk 0:03:04]}  c5 {[%clk 0:02:46]} 7. O-O {[%clk 0:03:04]}  cxd4 {[%clk 0:02:46]} 8. exd4 {[%clk 0:03:05]}  Nc6 {[%clk 0:02:46]} 9. Be3 {[%clk 0:03:06]}  Bg4 {[%clk 0:02:45]} 10. h3 {[%clk 0:03:06]}  Bxf3 {[%clk 0:02:31]} 11. Bxf3 {[%clk 0:03:07]}  dxc4 {[%clk 0:02:31]} 12. Bxc6 {[%clk 0:03:06]}  bxc6 {[%clk 0:02:31]} 13. Qa4 {[%clk 0:03:07]}  Qb6 {[%clk 0:01:52]} 14. Rab1 {[%clk 0:03:06]}  Nd5 {[%clk 0:01:42]} 15. Qxc4 {[%clk 0:03:06]}  e6 {[%clk 0:01:42]} 16. Rfc1 {[%clk 0:03:05]}  Nxe3 {[%clk 0:01:16]} 17. fxe3 {[%clk 0:03:06]}  Bh6 {[%clk 0:01:15]} 18. Kf2 {[%clk 0:03:06]}  e5 {[%clk 0:01:10]} 19. Na4 {[%clk 0:03:06]}  Qd8 {[%clk 0:01:04]} 20. dxe5 {[%clk 0:03:03]}  Qd2+ {[%clk 0:01:02]} 21. Kf1 {[%clk 0:02:58]}  Bxe3 {[%clk 0:00:57]} 22. Rc2 {[%clk 0:02:58]}  Qd7 {[%clk 0:00:50]} 23. Qe4 {[%clk 0:02:53]}  Bb6 {[%clk 0:00:37]} 24. Re1 {[%clk 0:02:52]}  Rac8 {[%clk 0:00:24]} 25. b4 {[%clk 0:02:53]}  c5 {[%clk 0:00:17]} 26. Nxc5 {[%clk 0:02:53]}  Qb5+ {[%clk 0:00:14]} 27. Qc4 {[%clk 0:02:53]}  Qc6 {[%clk 0:00:11]} 28. Kg1 {[%clk 0:02:53]}  Rfe8 {[%clk 0:00:08]} 29. Kh1 {[%clk 0:02:53]}  Bxc5 {[%clk 0:00:08]} 30. bxc5 {[%clk 0:02:53]}  Re6 {[%clk 0:00:09]} 31. Qd4 {[%clk 0:02:52]}  Rce8 {[%clk 0:00:09]} 32. Rf2 {[%clk 0:02:52]}  Qc7 {[%clk 0:00:09]} 33. Rd2 {[%clk 0:02:52]}  Rxe5 {[%clk 0:00:08]} 34. Rxe5 {[%clk 0:02:47]}  Rxe5 {[%clk 0:00:08]} 35. Qd8+ {[%clk 0:02:48]}  Qxd8 {[%clk 0:00:09]} 36. Rxd8+ {[%clk 0:02:49]}  Kg7 {[%clk 0:00:09]} 37. Rc8 {[%clk 0:02:48]}  Re2 {[%clk 0:00:09]} 38. c6 {[%clk 0:02:46]}  Rxa2 {[%clk 0:00:09]} 39. Ra8 {[%clk 0:02:44]}  Rc2 {[%clk 0:00:09]} 40. Rxa7 {[%clk 0:02:44]}  Rxc6 {[%clk 0:00:09]} 41. Ra1 {[%clk 0:02:45]}  h5 {[%clk 0:00:10]} 42. Rf1 {[%clk 0:02:45]}  h4 {[%clk 0:00:10]} 43. Rd1 {[%clk 0:02:46]}  g5 {[%clk 0:00:10]} 44. Rd5 {[%clk 0:02:46]}  Kg6 {[%clk 0:00:10]} 45. Kh2 {[%clk 0:02:47]}  f6 {[%clk 0:00:11]} 46. Rd8 {[%clk 0:02:48]}  Rc2 {[%clk 0:00:11]} 47. Rg8+ {[%clk 0:02:48]}  Kf5 {[%clk 0:00:12]} 48. Ra8 {[%clk 0:02:49]}  Rc5 {[%clk 0:00:12]} 49. Ra4 {[%clk 0:02:49]}  Ke5 {[%clk 0:00:12]} 50. Rg4 {[%clk 0:02:49]}  Ke6 {[%clk 0:00:11]} 51. Ra4 {[%clk 0:02:50]}  f5 {[%clk 0:00:12]} 52. Ra6+ {[%clk 0:02:50]}  Ke5 {[%clk 0:00:12]} 53. Rg6 {[%clk 0:02:51]}  Kf4 {[%clk 0:00:12]} 54. Rh6 {[%clk 0:02:52]}  Rc2 {[%clk 0:00:11]} 55. Rh8 {[%clk 0:02:52]}  Rc4 {[%clk 0:00:09]} 56. Rh7 {[%clk 0:02:52]}  Rb4 {[%clk 0:00:10]} 57. Rh8 {[%clk 0:02:52]}  Re4 {[%clk 0:00:10]} 58. Rh7 {[%clk 0:02:53]}  Ke3 {[%clk 0:00:10]} 59. Rf7 {[%clk 0:02:52]}  f4 {[%clk 0:00:10]} 60. Rf5 {[%clk 0:02:53]}  Kf2 {[%clk 0:00:07]} 61. Rxg5 {[%clk 0:02:53]}  f3 {[%clk 0:00:07]} 62. Rf5 {[%clk 0:02:53]}  Re3 {[%clk 0:00:07]} 63. Rf4 {[%clk 0:02:53]}  Rd3 {[%clk 0:00:06]} 64. Rxh4 {[%clk 0:02:41]}  fxg2 {[%clk 0:00:06]} 65. Rg4 {[%clk 0:02:39]}  g1=Q+ {[%clk 0:00:05]} 66. Rxg1 {[%clk 0:02:40]}  Rxh3+ {[%clk 0:00:05]} 67. Kxh3 {[%clk 0:02:41]}  Kxg1 {[%clk 0:00:05]} 1/2-1/2


[Site "https://www.chess.com"]